[Event "CZE-ch Youth G10-G12-G14 2022"]
[Site "Luhacovice"]
[Date "2022.03.14"]
[Round "3.24"]
[White "Zezulova Sara"]
[Black "Martinkova Klara"]
[Result "0-1"]
[ECO "C58"]
[WhiteElo "1000"]
[BlackElo "1177"]
[Annotator "NA"]
[PlyCount "47"]
[EventDate "2022.03.12"]
[EventType "swiss"]
[EventCountry "CZE"]
[SourceTitle "playchess.com"]
[Source "ChessBase"]
[SourceQuality "1"]
[TimeControl "40/5400+30:1800+30"]

1. e4 {[%emt 0:00:22]} e5 {[%emt 0:00:07]} 2. Nf3 {[%emt 0:00:19]} Nc6 {[%emt 0:00:33]} 3. Bc4 {[%emt 0:00:31]} Nf6 {[%emt 0:00:43]} 4. Ng5 {[%emt 0:00:58]} d5 {[%emt 0:00:19]} 5. exd5 {[%emt 0:00:40]} Na5 {[%emt 0:00:25]} 6. O-O {[%emt 0:00:23]} Nxc4 {[%emt 0:00:14]} 7. Re1 {[%emt 0:00:43]} Be7 {[%emt 0:04:04]} 8. b3 {[%emt 0:01:50]} Nb6 {[%emt 0:00:34]} 9. d4 {[%emt 0:01:42]} Nfxd5 {[%emt 0:02:00]} 10. Ne4 {[%emt 0:00:56]} f6 {[%emt 0:03:28]} 11. Bd2 {[%emt 0:02:13]} exd4 {[%emt 0:02:16]} 12. c3 {[%emt 0:02:40]} dxc3 {[%emt 0:03:34]} 13. Nexc3 {[%emt 0:02:11]} Nxc3 {[%emt 0:01:20]} 14. Nxc3 {[%emt 0:01:02]} O-O {[%emt 0:00:34]} 15. Rc1 {[%emt 0:02:50]} Bb4 {[%emt 0:02:30]} 16. h3 {[%emt 0:03:36]} a5 {[%emt 0:02:10]} 17. a4 {[%emt 0:02:09]} Bf5 {[%emt 0:02:17]} 18. Qe2 {[%emt 0:01:21]} Re8 {[%emt 0:04:15]} 19. Qxe8+ {[%emt 0:02:30]} Qxe8 {[%emt 0:00:20]} 20. Rxe8+ {[%emt 0:00:17]} Rxe8 {[%emt 0:00:03]} 21. Re1 {[%emt 0:00:59]} Rxe1+ {[%emt 0:00:31]} 22. Bxe1 {[%emt 0:00:21]} Kf7 {[%emt 0:00:53]} 23. g4 {[%emt 0:01:36]} Be6 {[%emt 0:00:25]} 24. Kf1 {[%emt 0:02:20]} 0-1

[Event "CZE-ch Youth G10-G12-G14 2022"]
[Site "Luhacovice"]
[Date "2022.03.14"]
[Round "3.25"]
[White "Archlebova Eva"]
[Black "Kubickova Linda"]
[Result "1-0"]
[ECO "C50"]
[WhiteElo "1040"]
[BlackElo "1000"]
[Annotator "NA"]
[PlyCount "44"]
[EventDate "2022.03.12"]
[EventType "swiss"]
[EventCountry "CZE"]
[SourceTitle "playchess.com"]
[Source "ChessBase"]
[SourceQuality "1"]
[TimeControl "40/5400+30:1800+30"]

1. e4 {[%emt 0:00:07]} e5 {[%emt 0:00:09]} 2. Nf3 {[%emt 0:00:06]} Nc6 {[%emt 0:00:15]} 3. Nc3 {[%emt 0:00:25]} Nf6 {[%emt 0:00:10]} 4. Bc4 {[%emt 0:00:06]} Bc5 {[%emt 0:00:42]} 5. d3 {[%emt 0:00:05]} O-O {[%emt 0:00:16]} 6. Bg5 {[%emt 0:00:15]} h6 {[%emt 0:00:48]} 7. Bh4 {[%emt 0:00:26]} g5 {[%emt 0:00:37]} 8. Bg3 {[%emt 0:00:06]} Ng4 {[%emt 0:01:01]} 9. Qd2 {[%emt 0:02:38]} d6 {[%emt 0:02:10]} 10. h3 {[%emt 0:00:22]} Nf6 {[%emt 0:00:34]} 11. O-O-O {[%emt 0:01:16]} Na5 {[%emt 0:05:27]} 12. h4 {[%emt 0:02:07]} Nh7 {[%emt 0:03:30]} 13. hxg5 {[%emt 0:00:17]} hxg5 {[%emt 0:00:20]} 14. Rh5 {[%emt 0:03:05]} Bg4 {[%emt 0:03:22]} 15. Rh6 {[%emt 0:01:43]} Kg7 {[%emt 0:02:00]} 16. Rdh1 {[%emt 0:00:30]} Rh8 {[%emt 0:01:33]} 17. Nxg5 {[%emt 0:01:41]} Qxg5 {[%emt 0:02:04]} 18. Qxg5+ {[%emt 0:00:39]} Nxg5 {[%emt 0:00:16]} 19. R6h4 {[%emt 0:07:53]} Bd7 {[%emt 0:01:27]} 20. f4 {[%emt 0:04:46]} Be3+ {[%emt 0:02:32]} 21. Kd1 {[%emt 0:01:48]} exf4 {[%emt 0:00:25]} 22. Be1 {[%emt 0:01:54]} f3 {[%emt 0:02:20]} 1-0

[Event "CZE-ch Youth G10-G12-G14 2022"]
[Site "Luhacovice"]
[Date "2022.03.14"]
[Round "3.26"]
[White "Souralova, Alena"]
[Black "Maresova Denisa"]
[Result "1-0"]
[ECO "C02"]
[WhiteElo "1010"]
[BlackElo "1103"]
[Annotator "NA"]
[PlyCount "89"]
[EventDate "2022.03.12"]
[EventType "swiss"]
[EventCountry "CZE"]
[SourceTitle "playchess.com"]
[Source "ChessBase"]
[SourceQuality "1"]
[TimeControl "40/5400+30:1800+30"]

1. e4 {[%emt 0:00:03]} e6 {[%emt 0:00:07]} 2. d4 {[%emt 0:00:22]} d5 {[%emt 0:00:09]} 3. e5 {[%emt 0:00:14]} c5 {[%emt 0:00:30]} 4. c3 {[%emt 0:00:17]} Nc6 {[%emt 0:00:19]} 5. Nf3 {[%emt 0:00:55]} Qb6 {[%emt 0:00:25]} 6. Bd3 {[%emt 0:01:10]} Bd7 {[%emt 0:00:30]} 7. O-O {[%emt 0:01:19]} cxd4 {[%emt 0:00:43]} 8. cxd4 {[%emt 1:30:10]} Nxd4 {[%emt 1:31:47]} 9. Nxd4 {[%emt 0:00:30]} Qxd4 {[%emt 0:00:30]} 10. Nc3 {[%emt 0:00:30]} Qxe5 {[%emt 0:00:30]} 11. Re1 {[%emt 0:00:30]} Qc7 {[%emt 0:00:30]} 12. Nxd5 {[%emt 0:00:30]} Qd8 {[%emt 0:00:30]} 13. Bf4 {[%emt 0:00:30]} Rc8 {[%emt 0:00:30]} 14. Rc1 {[%emt 0:00:30]} Ne7 {[%emt 0:00:30]} 15. Nc7+ {[%emt 0:00:30]} Rxc7 {[%emt 0:00:30]} 16. Rxc7 {[%emt 0:00:30]} Nd5 {[%emt 0:00:30]} 17. Qc1 {[%emt 0:00:30]} Bc6 {[%emt 0:00:30]} 18. Rxc6 {[%emt 0:00:30]} bxc6 {[%emt 0:00:30]} 19. Qxc6+ {[%emt 0:00:30]} Qd7 {[%emt 0:00:30]} 20. Bb5 {[%emt 0:00:30]} Qxc6 {[%emt 0:00:30]} 21. Bxc6+ {[%emt 0:00:30]} Kd8 {[%emt 0:00:30]} 22. Bxd5 {[%emt 0:00:30]} exd5 {[%emt 0:00:30]} 23. Rd1 {[%emt 0:00:30]} g6 {[%emt 0:00:30]} 24. Rxd5+ {[%emt 0:00:30]} Kc8 {[%emt 0:00:30]} 25. f3 {[%emt 0:00:30]} Bg7 {[%emt 0:00:30]} 26. Be5 {[%emt 0:00:30]} Bxe5 {[%emt 0:00:30]} 27. Rxe5 {[%emt 0:00:30]} Rd8 {[%emt 0:00:30]} 28. Re7 {[%emt 0:00:30]} Rd1+ {[%emt 0:00:30]} 29. Kf2 {[%emt 0:00:30]} Rd2+ {[%emt 0:00:30]} 30. Kg3 {[%emt 0:00:30]} Kb8 {[%emt 0:00:30]} 31. Rxf7 {[%emt 0:00:30]} Rxb2 {[%emt 0:00:30]} 32. Rxh7 {[%emt 0:00:30]} Rxa2 {[%emt 0:00:30]} 33. h4 {[%emt 0:00:30]} Rc2 {[%emt 0:00:30]} 34. h5 {[%emt 0:00:30]} Rc8 {[%emt 0:00:30]} 35. hxg6 {[%emt 0:00:30]} a5 {[%emt 0:00:30]} 36. Kg4 {[%emt 0:00:30]} a4 {[%emt 0:00:30]} 37. Rh1 {[%emt 0:00:30]} Kb7 {[%emt 0:00:30]} 38. Kg5 {[%emt 0:00:30]} Ra8 {[%emt 0:00:30]} 39. g7 {[%emt 0:00:30]} a3 {[%emt 0:00:30]} 40. Kg6 {[%emt 0:00:30]} Kb6 {[%emt 0:00:30]} 41. Kh7 {[%emt 0:30:30]} Kb5 {[%emt 0:30:30]} 42. g8=Q {[%emt 0:00:30]} Rxg8 {[%emt 0:00:30]} 43. Kxg8 {[%emt 0:00:30]} Ka4 {[%emt 0:00:30]} 44. f4 {[%emt 0:00:30]} Kb5 {[%emt 0:00:30]} 45. f5 {[%emt 0:00:30]} 1-0

[Event "CZE-ch Youth G10-G12-G14 2022"]
[Site "Luhacovice"]
[Date "2022.03.14"]
[Round "3.27"]
[White "Barteckova, Valerie"]
[Black "Rezacova Julie"]
[Result "1-0"]
[ECO "C62"]
[WhiteElo "1250"]
[BlackElo "1063"]
[Annotator "NA"]
[PlyCount "103"]
[EventDate "2022.03.12"]
[EventType "swiss"]
[EventCountry "CZE"]
[SourceTitle "playchess.com"]
[Source "ChessBase"]
[SourceQuality "1"]
[TimeControl "40/5400+30:1800+30"]

1. e4 {[%emt 0:00:05]} e5 {[%emt 0:00:05]} 2. Nf3 {[%emt 0:00:13]} Nc6 {[%emt 0:00:13]} 3. Bb5 {[%emt 0:00:10]} d6 {[%emt 0:00:18]} 4. h3 {[%emt 0:00:53]} Nf6 {[%emt 0:00:11]} 5. d3 {[%emt 0:01:01]} Be7 {[%emt 0:00:17]} 6. O-O {[%emt 0:00:33]} O-O {[%emt 0:00:06]} 7. c3 {[%emt 0:00:44]} a6 {[%emt 0:00:20]} 8. Ba4 {[%emt 0:00:20]} Bd7 {[%emt 0:00:25]} 9. Re1 {[%emt 0:00:26]} b5 {[%emt 0:00:26]} 10. Bc2 {[%emt 0:00:33]} d5 {[%emt 0:03:24]} 11. exd5 {[%emt 0:00:42]} Nxd5 {[%emt 0:00:09]} 12. Nxe5 {[%emt 0:01:02]} Nxe5 {[%emt 0:00:15]} 13. Rxe5 {[%emt 0:00:14]} Nf6 {[%emt 0:00:47]} 14. d4 {[%emt 0:02:44]} Bd6 {[%emt 0:02:06]} 15. Re1 {[%emt 0:01:08]} c5 {[%emt 0:00:57]} 16. Bg5 {[%emt 0:03:22]} h6 {[%emt 0:06:28]} 17. Bh4 {[%emt 0:01:56]} Re8 {[%emt 0:02:14]} 18. Rxe8+ {[%emt 0:03:43]} Bxe8 {[%emt 0:00:17]} 19. Qf3 {[%emt 0:01:57]} Qe7 {[%emt 0:03:18]} 20. Nd2 {[%emt 0:02:16]} Rc8 {[%emt 0:01:20]} 21. Bxf6 {[%emt 0:01:28]} gxf6 {[%emt 0:01:08]} 22. Qg4+ {[%emt 0:02:15]} Kf8 {[%emt 0:00:23]} 23. Qxc8 {[%emt 0:02:09]} cxd4 {[%emt 0:04:48]} 24. cxd4 {[%emt 0:03:39]} Bb4 {[%emt 0:01:42]} 25. Nf3 {[%emt 0:01:21]} Bd6 {[%emt 0:01:09]} 26. a3 {[%emt 0:02:39]} a5 {[%emt 0:00:24]} 27. Re1 {[%emt 0:00:30]} Qd7 {[%emt 0:01:05]} 28. Qc3 {[%emt 0:02:42]} b4 {[%emt 0:00:27]} 29. Qd3 {[%emt 0:00:32]} f5 {[%emt 0:02:15]} 30. Qxf5 {[%emt 0:02:31]} Qxf5 {[%emt 0:00:07]} 31. Bxf5 {[%emt 0:00:07]} bxa3 {[%emt 0:00:16]} 32. bxa3 {[%emt 0:00:19]} Bxa3 {[%emt 0:00:08]} 33. Rd1 {[%emt 0:01:35]} a4 {[%emt 0:00:36]} 34. Bc2 {[%emt 0:02:14]} Bb4 {[%emt 0:00:29]} 35. Bb1 {[%emt 0:00:56]} a3 {[%emt 0:00:25]} 36. Ba2 {[%emt 0:00:51]} Ba4 {[%emt 0:00:24]} 37. Rb1 {[%emt 0:00:58]} Bc3 {[%emt 0:00:34]} 38. Rb8+ {[%emt 0:00:31]} Ke7 {[%emt 0:00:13]} 39. Ra8 {[%emt 0:00:51]} Bc6 {[%emt 0:00:17]} 40. Rxa3 {[%emt 0:00:35]} Bb4 {[%emt 0:00:14]} 41. Ra7+ {[%emt 0:30:28]} Bd7 {[%emt 0:30:20]} 42. Ne5 {[%emt 0:00:46]} Kd8 {[%emt 0:00:22]} 43. Rxd7+ {[%emt 0:00:10]} Kc8 {[%emt 0:00:37]} 44. Rxf7 {[%emt 0:00:20]} Bd6 {[%emt 0:00:21]} 45. Rh7 {[%emt 0:00:49]} Bxe5 {[%emt 0:00:25]} 46. dxe5 {[%emt 0:00:15]} Kd8 {[%emt 0:00:12]} 47. e6 {[%emt 0:00:24]} h5 {[%emt 0:00:20]} 48. Bb3 {[%emt 0:00:34]} h4 {[%emt 0:00:18]} 49. Ba4 {[%emt 0:00:22]} Kc8 {[%emt 0:00:14]} 50. e7 {[%emt 0:00:15]} Kc7 {[%emt 0:00:09]} 51. e8=Q+ {[%emt 0:00:18]} Kb6 {[%emt 0:00:17]} 52. Qb5# {[%emt 0:00:26]} 1-0

[Event "CZE-ch Youth G10-G12-G14 2022"]
[Site "Luhacovice"]
[Date "2022.03.14"]
[Round "3.28"]
[White "Nova Anezka"]
[Black "Archlebova Iva"]
[Result "1-0"]
[ECO "C56"]
[WhiteElo "1111"]
[BlackElo "1028"]
[Annotator "NA"]
[PlyCount "51"]
[EventDate "2022.03.12"]
[EventType "swiss"]
[EventCountry "CZE"]
[SourceTitle "playchess.com"]
[Source "ChessBase"]
[SourceQuality "1"]
[TimeControl "40/5400+30:1800+30"]

1. e4 {[%emt 0:00:01]} e5 {[%emt 0:00:08]} 2. Nf3 {[%emt 0:00:20]} Nc6 {[%emt 0:00:10]} 3. d4 {[%emt 0:00:37]} exd4 {[%emt 0:00:20]} 4. Bc4 {[%emt 0:01:52]} Nf6 {[%emt 0:00:14]} 5. O-O {[%emt 0:00:26]} Bc5 {[%emt 0:00:18]} 6. Bg5 {[%emt 0:02:01]} O-O {[%emt 0:02:14]} 7. e5 {[%emt 0:00:59]} Be7 {[%emt 0:01:03]} 8. exf6 {[%emt 0:03:55]} Bxf6 {[%emt 0:00:37]} 9. Bf4 {[%emt 0:00:08]} d5 {[%emt 0:07:51]} 10. Bd3 {[%emt 0:02:28]} Bg4 {[%emt 0:01:04]} 11. h3 {[%emt 0:00:16]} Bh5 {[%emt 0:01:59]} 12. Be2 {[%emt 0:01:10]} Re8 {[%emt 0:04:56]} 13. Re1 {[%emt 0:02:06]} Bg6 {[%emt 0:01:28]} 14. c3 {[%emt 0:00:58]} dxc3 {[%emt 0:03:00]} 15. Nxc3 {[%emt 0:06:09]} d4 {[%emt 0:01:10]} 16. Nb5 {[%emt 0:02:08]} Rb8 {[%emt 0:01:11]} 17. Bxc7 {[%emt 0:01:36]} Qd5 {[%emt 0:00:30]} 18. Bxb8 {[%emt 0:10:51]} Rxb8 {[%emt 0:00:48]} 19. Qa4 {[%emt 0:02:34]} d3 {[%emt 0:04:58]} 20. Rad1 {[%emt 0:06:09]} Bxb2 {[%emt 0:02:46]} 21. Rd2 {[%emt 0:03:48]} a6 {[%emt 0:06:38]} 22. Rxb2 {[%emt 0:09:13]} axb5 {[%emt 0:05:18]} 23. Rxb5 {[%emt 0:01:56]} Qe6 {[%emt 0:00:23]} 24. Bxd3 {[%emt 0:02:58]} Qd7 {[%emt 0:00:37]} 25. Bxg6 {[%emt 0:03:58]} hxg6 {[%emt 0:01:07]} 26. Qh4 {[%emt 0:00:49]} 1-0

[Event "CZE-ch Youth G10-G12-G14 2022"]
[Site "Luhacovice"]
[Date "2022.03.14"]
[Round "3.29"]
[White "Rybackova, Lucie"]
[Black "Veverkova, Dorota"]
[Result "1-0"]
[ECO "E62"]
[WhiteElo "1612"]
[BlackElo "1320"]
[Annotator "NA"]
[PlyCount "79"]
[EventDate "2022.03.12"]
[EventType "swiss"]
[EventCountry "CZE"]
[SourceTitle "playchess.com"]
[Source "ChessBase"]
[SourceQuality "1"]
[TimeControl "40/5400+30:1800+30"]

1. d4 {[%emt 0:00:23]} Nf6 {[%emt 0:00:19]} 2. Nf3 {[%emt 0:00:26]} g6 {[%emt 0:00:46]} 3. g3 {[%emt 0:00:49]} Bg7 {[%emt 0:00:51]} 4. Bg2 {[%emt 0:01:15]} d6 {[%emt 0:01:16]} 5. c4 {[%emt 0:00:59]} Nc6 {[%emt 0:02:44]} 6. Nc3 {[%emt 0:05:38]} O-O {[%emt 0:02:22]} 7. O-O {[%emt 0:01:44]} e5 {[%emt 0:02:35]} 8. d5 {[%emt 0:02:48]} Ne7 {[%emt 0:00:25]} 9. c5 {[%emt 0:01:05]} dxc5 {[%emt 0:05:46]} 10. Nxe5 {[%emt 0:04:23]} Nfxd5 {[%emt 0:00:59]} 11. Nxf7 {[%emt 0:17:42]} Rxf7 {[%emt 0:07:20]} 12. Nxd5 {[%emt 0:00:40]} Kh8 {[%emt 0:01:52]} 13. Bg5 {[%emt 0:01:49]} Bf8 {[%emt 0:02:15]} 14. Bf6+ {[%emt 0:02:09]} Kg8 {[%emt 0:02:11]} 15. Nxe7+ {[%emt 0:00:13]} Bxe7 {[%emt 0:00:34]} 16. Qxd8+ {[%emt 0:00:05]} Bxd8 {[%emt 0:00:54]} 17. Bxd8 {[%emt 0:00:09]} Bg4 {[%emt 0:00:43]} 18. Bg5 {[%emt 0:00:50]} c6 {[%emt 0:01:29]} 19. e4 {[%emt 0:00:44]} Raf8 {[%emt 0:01:32]} 20. Bh6 {[%emt 0:01:09]} Rd8 {[%emt 0:00:36]} 21. f3 {[%emt 0:00:22]} Be6 {[%emt 0:00:33]} 22. Rfd1 {[%emt 0:00:36]} Rd4 {[%emt 0:00:52]} 23. Be3 {[%emt 0:00:45]} Rxd1+ {[%emt 0:00:37]} 24. Rxd1 {[%emt 0:00:13]} Bxa2 {[%emt 0:00:33]} 25. Bh6 {[%emt 0:02:00]} Re7 {[%emt 0:01:05]} 26. Ra1 {[%emt 0:01:09]} Bc4 {[%emt 0:00:51]} 27. Rxa7 {[%emt 0:00:58]} Rd7 {[%emt 0:01:22]} 28. Ra1 {[%emt 0:00:59]} Kf7 {[%emt 0:00:49]} 29. Bf1 {[%emt 0:01:44]} Bb3 {[%emt 0:02:10]} 30. Rc1 {[%emt 0:01:28]} b6 {[%emt 0:00:47]} 31. Bc4+ {[%emt 0:01:11]} Bxc4 {[%emt 0:00:38]} 32. Rxc4 {[%emt 0:00:04]} Rd4 {[%emt 0:01:42]} 33. Rxd4 {[%emt 0:02:56]} cxd4 {[%emt 0:00:14]} 34. Kf2 {[%emt 0:00:25]} Kf6 {[%emt 0:01:44]} 35. Ke2 {[%emt 0:00:22]} g5 {[%emt 0:00:53]} 36. f4 {[%emt 0:00:55]} g4 {[%emt 0:03:00]} 37. Kd3 {[%emt 0:00:31]} c5 {[%emt 0:00:16]} 38. b4 {[%emt 0:02:00]} Ke6 {[%emt 0:00:25]} 39. bxc5 {[%emt 0:00:13]} bxc5 {[%emt 0:00:32]} 40. Bf8 {[%emt 0:00:14]} 1-0

[Event "CZE-ch Youth G10-G12-G14 2022"]
[Site "Luhacovice"]
[Date "2022.03.14"]
[Round "3.30"]
[White "Mikesova, Lenka"]
[Black "Dudkova, Josefina"]
[Result "0-1"]
[ECO "B76"]
[WhiteElo "1364"]
[BlackElo "1545"]
[Annotator "NA"]
[PlyCount "100"]
[EventDate "2022.03.12"]
[EventType "swiss"]
[EventCountry "CZE"]
[SourceTitle "playchess.com"]
[Source "ChessBase"]
[SourceQuality "1"]
[TimeControl "40/5400+30:1800+30"]

1. e4 {[%emt 0:00:14]} c5 {[%emt 0:00:09]} 2. Nf3 {[%emt 0:00:12]} d6 {[%emt 0:00:05]} 3. d4 {[%emt 0:00:17]} cxd4 {[%emt 0:00:06]} 4. Nxd4 {[%emt 0:00:10]} Nf6 {[%emt 0:00:10]} 5. Nc3 {[%emt 0:00:22]} g6 {[%emt 0:00:11]} 6. Be3 {[%emt 0:01:02]} Bg7 {[%emt 0:00:08]} 7. f3 {[%emt 0:00:30]} O-O {[%emt 0:00:13]} 8. Qd2 {[%emt 0:11:46]} Nc6 {[%emt 0:00:12]} 9. O-O-O {[%emt 0:10:45]} Bd7 {[%emt 0:25:17]} 10. h4 {[%emt 0:53:22]} Nxd4 {[%emt 0:45:38]} 11. Bxd4 {[%emt 0:00:30]} b5 {[%emt 0:00:30]} 12. g4 {[%emt 0:00:30]} b4 {[%emt 0:00:30]} 13. Nd5 {[%emt 0:00:30]} Nxd5 {[%emt 0:00:30]} 14. Bxg7 {[%emt 0:00:30]} Kxg7 {[%emt 0:00:30]} 15. Qxd5 {[%emt 0:00:30]} Qb6 {[%emt 0:00:30]} 16. Qd4+ {[%emt 0:00:30]} f6 {[%emt 0:00:30]} 17. Qxb6 {[%emt 0:00:30]} axb6 {[%emt 0:00:30]} 18. Bc4 {[%emt 0:00:30]} Rfc8 {[%emt 0:00:30]} 19. Bb3 {[%emt 0:00:30]} Ba4 {[%emt 0:00:30]} 20. Kd2 {[%emt 0:00:30]} Rc5 {[%emt 0:00:30]} 21. h5 {[%emt 0:00:30]} Bxb3 {[%emt 0:00:30]} 22. axb3 {[%emt 0:00:30]} gxh5 {[%emt 0:00:30]} 23. gxh5 {[%emt 0:00:30]} Kh6 {[%emt 0:00:30]} 24. Rhg1 {[%emt 0:00:30]} Rxh5 {[%emt 0:00:30]} 25. Rg2 {[%emt 0:00:30]} Raa5 {[%emt 0:00:30]} 26. f4 {[%emt 0:00:30]} Rh3 {[%emt 0:00:30]} 27. f5 {[%emt 0:00:30]} d5 {[%emt 0:00:30]} 28. Rc1 {[%emt 0:00:30]} d4 {[%emt 0:00:30]} 29. Rcg1 {[%emt 0:00:30]} Re5 {[%emt 0:00:30]} 30. Rg4 {[%emt 0:00:30]} e6 {[%emt 0:00:30]} 31. Rf4 {[%emt 0:04:30]} exf5 {[%emt 0:04:46]} 32. exf5 {[%emt 0:00:35]} Rd5 {[%emt 0:00:21]} 33. Rg2 {[%emt 0:04:27]} Rh5 {[%emt 0:03:41]} 34. Kd3 {[%emt 0:00:57]} Rhxf5 {[%emt 0:03:09]} 35. Rxf5 {[%emt 0:01:44]} Rxf5 {[%emt 0:00:04]} 36. Kxd4 {[%emt 0:00:16]} Rg5 {[%emt 0:02:31]} 37. Rh2+ {[%emt 0:00:24]} Kg6 {[%emt 0:00:15]} 38. Ke4 {[%emt 0:00:24]} f5+ {[%emt 0:00:43]} 39. Kf3 {[%emt 0:00:52]} h5 {[%emt 0:01:06]} 40. Re2 {[%emt 0:02:15]} Kf6 {[%emt 0:03:08]} 41. Rd2 {[%emt 0:30:58]} h4 {[%emt 0:32:54]} 42. Rd6+ {[%emt 0:01:20]} Ke5 {[%emt 0:00:49]} 43. Rxb6 {[%emt 0:00:52]} Rh5 {[%emt 0:02:10]} 44. Rb5+ {[%emt 0:01:11]} Kf6 {[%emt 0:00:26]} 45. Kg2 {[%emt 0:01:21]} h3+ {[%emt 0:00:21]} 46. Kh2 {[%emt 0:00:16]} Rh4 {[%emt 0:00:23]} 47. c4 {[%emt 0:01:02]} bxc3 {[%emt 0:00:23]} 48. bxc3 {[%emt 0:00:11]} f4 {[%emt 0:00:13]} 49. Ra5 {[%emt 0:00:41]} f3 {[%emt 0:03:59]} 50. Kg3 {[%emt 0:00:50]} h2 {[%emt 0:00:00]} 0-1

[Event "CZE-ch Youth G10-G12-G14 2022"]
[Site "Luhacovice"]
[Date "2022.03.14"]
[Round "3.31"]
[White "Barteckova, Denisa"]
[Black "Dobsa, Emma"]
[Result "0-1"]
[ECO "C47"]
[WhiteElo "1323"]
[BlackElo "1425"]
[Annotator "NA"]
[PlyCount "140"]
[EventDate "2022.03.12"]
[EventType "swiss"]
[EventCountry "CZE"]
[SourceTitle "playchess.com"]
[Source "ChessBase"]
[SourceQuality "1"]
[TimeControl "40/5400+30:1800+30"]

1. e4 {[%emt 0:00:03]} e5 {[%emt 0:00:05]} 2. Nf3 {[%emt 0:00:09]} Nc6 {[%emt 0:00:08]} 3. d4 {[%emt 0:00:05]} exd4 {[%emt 0:00:06]} 4. Nxd4 {[%emt 0:00:05]} Nf6 {[%emt 0:00:09]} 5. Nc3 {[%emt 0:00:13]} Bb4 {[%emt 0:00:09]} 6. Nxc6 {[%emt 0:00:10]} bxc6 {[%emt 0:00:10]} 7. Bd3 {[%emt 0:00:15]} d5 {[%emt 0:00:30]} 8. exd5 {[%emt 0:00:33]} cxd5 {[%emt 0:00:38]} 9. O-O {[%emt 0:00:07]} O-O {[%emt 0:00:08]} 10. Bg5 {[%emt 0:00:18]} c6 {[%emt 0:00:12]} 11. Qf3 {[%emt 0:01:43]} Re8 {[%emt 0:01:00]} 12. h3 {[%emt 0:00:30]} h6 {[%emt 0:00:25]} 13. Bh4 {[%emt 0:00:07]} Rb8 {[%emt 0:04:58]} 14. a3 {[%emt 0:01:53]} Bd6 {[%emt 0:00:11]} 15. Na4 {[%emt 0:02:38]} a5 {[%emt 0:02:50]} 16. Rfe1 {[%emt 0:00:46]} Be6 {[%emt 0:01:23]} 17. Rac1 {[%emt 0:05:09]} g5 {[%emt 0:06:58]} 18. Bg3 {[%emt 0:01:06]} Kg7 {[%emt 0:09:51]} 19. Be5 {[%emt 0:07:23]} Bxe5 {[%emt 0:07:05]} 20. Rxe5 {[%emt 0:01:08]} Qd6 {[%emt 0:03:39]} 21. Ree1 {[%emt 0:04:06]} g4 {[%emt 0:08:43]} 22. hxg4 {[%emt 0:01:28]} Bxg4 {[%emt 0:00:22]} 23. Qg3 {[%emt 0:00:15]} Qxg3 {[%emt 0:00:36]} 24. fxg3 {[%emt 0:00:11]} Re6 {[%emt 0:05:29]} 25. b3 {[%emt 0:02:36]} Rbe8 {[%emt 0:01:48]} 26. Kf2 {[%emt 0:00:11]} Nh5 {[%emt 0:02:52]} 27. Rxe6 {[%emt 0:01:34]} fxe6 {[%emt 0:00:15]} 28. Nc5 {[%emt 0:01:04]} Rf8+ {[%emt 0:01:55]} 29. Kg1 {[%emt 0:00:51]} Nxg3 {[%emt 0:01:11]} 30. Re1 {[%emt 0:00:51]} Re8 {[%emt 0:03:31]} 31. Nb7 {[%emt 0:00:59]} Ra8 {[%emt 0:04:52]} 32. Nc5 {[%emt 0:00:33]} Re8 {[%emt 0:20:10]} 33. Nb7 {[%emt 0:00:09]} e5 {[%emt 0:03:21]} 34. Kf2 {[%emt 0:00:24]} Nh5 {[%emt 0:03:56]} 35. g3 {[%emt 0:01:34]} e4 {[%emt 0:01:18]} 36. Be2 {[%emt 0:00:17]} Rf8+ {[%emt 0:01:53]} 37. Kg2 {[%emt 0:01:11]} Bxe2 {[%emt 0:00:52]} 38. Rxe2 {[%emt 0:00:20]} Rf3 {[%emt 0:00:23]} 39. Nxa5 {[%emt 0:00:38]} Rxg3+ {[%emt 0:00:24]} 40. Kf1 {[%emt 0:00:44]} Rg6 {[%emt 0:00:42]} 41. Rg2 {[%emt 0:31:01]} Rxg2 {[%emt 0:34:30]} 42. Kxg2 {[%emt 0:00:07]} Nf4+ {[%emt 0:00:15]} 43. Kf2 {[%emt 0:00:29]} h5 {[%emt 0:01:17]} 44. Nxc6 {[%emt 0:00:22]} Kf6 {[%emt 0:00:00]} 45. Nd4 {[%emt 0:00:00]} h4 {[%emt 0:00:00]} 46. a4 {[%emt 0:00:00]} Ne6 {[%emt 0:00:00]} 47. Ne2 {[%emt 0:00:00]} Ke5 {[%emt 0:00:00]} 48. a5 {[%emt 0:00:00]} Nc7 {[%emt 0:00:00]} 49. c3 {[%emt 0:00:00]} Kf5 {[%emt 0:00:00]} 50. Nd4+ {[%emt 0:00:00]} Kf4 {[%emt 0:00:00]} 51. Ne2+ {[%emt 0:00:00]} Kg4 {[%emt 0:00:00]} 52. b4 {[%emt 0:00:00]} Nb5 {[%emt 0:00:00]} 53. a6 {[%emt 0:00:00]} h3 {[%emt 0:00:00]} 54. Nd4 {[%emt 0:00:00]} e3+ {[%emt 0:00:06]} 55. Kg1 {[%emt 0:00:00]} Kg3 {[%emt 0:03:05]} 56. Nf5+ {[%emt 0:00:00]} Kf3 {[%emt 0:01:31]} 57. a7 {[%emt 0:00:00]} Nxa7 {[%emt 0:00:05]} 58. Nd4+ {[%emt 0:00:00]} Ke4 {[%emt 0:01:26]} 59. Kh2 {[%emt 0:00:00]} Nb5 {[%emt 0:00:27]} 60. Ne2 {[%emt 0:00:00]} Kd3 {[%emt 0:00:26]} 61. Nf4+ {[%emt 0:00:00]} Kd2 {[%emt 0:00:20]} 62. Kxh3 {[%emt 0:00:00]} e2 {[%emt 0:00:19]} 63. Ng2 {[%emt 0:00:00]} Nxc3 {[%emt 0:00:11]} 64. Kg3 {[%emt 0:00:00]} e1=Q+ {[%emt 0:00:05]} 65. Nxe1 {[%emt 0:00:00]} Kxe1 {[%emt 0:00:05]} 66. Kf4 {[%emt 0:00:00]} Ke2 {[%emt 0:00:13]} 67. Ke5 {[%emt 0:00:00]} Ke3 {[%emt 0:01:16]} 68. b5 {[%emt 0:00:00]} d4 {[%emt 0:00:16]} 69. b6 {[%emt 0:00:00]} Na4 {[%emt 0:00:24]} 70. b7 {[%emt 0:00:00]} Nc5 {[%emt 0:00:02]} 0-1

[Event "CZE-ch Youth G10-G12-G14 2022"]
[Site "Luhacovice"]
[Date "2022.03.14"]
[Round "3.32"]
[White "Cinkova, Vicky"]
[Black "Hetfleischova, Elen"]
[Result "0-1"]
[ECO "A29"]
[WhiteElo "1317"]
[BlackElo "1363"]
[Annotator "NA"]
[PlyCount "48"]
[EventDate "2022.03.12"]
[EventType "swiss"]
[EventCountry "CZE"]
[SourceTitle "playchess.com"]
[Source "ChessBase"]
[SourceQuality "1"]
[TimeControl "40/5400+30:1800+30"]

1. c4 {[%emt 0:13:24]} e5 {[%emt 0:20:16]} 2. Nc3 {[%emt 0:00:30]} Nf6 {[%emt 0:00:30]} 3. g3 {[%emt 0:00:30]} d5 {[%emt 0:00:30]} 4. cxd5 {[%emt 0:00:30]} Nxd5 {[%emt 0:00:30]} 5. Bg2 {[%emt 0:00:30]} Be6 {[%emt 0:00:30]} 6. Nf3 {[%emt 0:00:30]} Nc6 {[%emt 0:00:30]} 7. O-O {[%emt 0:00:30]} f5 {[%emt 0:00:30]} 8. d3 {[%emt 0:00:30]} Be7 {[%emt 0:00:30]} 9. Rb1 {[%emt 0:00:30]} h5 {[%emt 0:00:30]} 10. a3 {[%emt 0:00:30]} h4 {[%emt 0:00:30]} 11. e3 {[%emt 0:00:30]} hxg3 {[%emt 0:01:19]} 12. fxg3 {[%emt 0:02:05]} Qd7 {[%emt 0:19:38]} 13. Nxd5 {[%emt 0:31:48]} Bxd5 {[%emt 0:01:58]} 14. Qa4 {[%emt 0:02:20]} b5 {[%emt 0:11:45]} 15. Qd1 {[%emt 0:10:02]} O-O-O {[%emt 0:04:10]} 16. e4 {[%emt 0:03:02]} Bxe4 {[%emt 0:04:32]} 17. Re1 {[%emt 0:03:02]} Bxd3 {[%emt 0:07:18]} 18. Ra1 {[%emt 0:02:10]} e4 {[%emt 0:04:05]} 19. Nd2 {[%emt 0:01:51]} Bc5+ {[%emt 0:01:48]} 20. Kh1 {[%emt 0:00:40]} Qd4 {[%emt 0:06:57]} 21. Nb3 {[%emt 0:01:09]} Rxh2+ {[%emt 0:00:23]} 22. Kxh2 {[%emt 0:00:13]} Rh8+ {[%emt 0:00:07]} 23. Bh3 {[%emt 0:00:11]} Qf2+ {[%emt 0:00:07]} 24. Kh1 {[%emt 0:00:08]} Rxh3# {[%emt 0:00:10]} 0-1